[Event "Titled Tuesday Blitz November 29 Early 2022"]
[White "Sztokbant, Bernardo Vainzoff"]
[Black "Costachi, Mihnea"]
[WhiteFideId "2115956"]
[BlackFideId "1217518"]
[WhiteElo "2228"]
[BlackElo "2424"]
[Result "0-1"]
[Round "06"]
[TimeControl "180+1"]
[Date "2022.11.30"]
[WhiteClock "0:00:01"]
[BlackClock "0:01:33"]

1. e4 {[%clk 0:03:00]}  e5 {[%clk 0:02:59]} 2. Nf3 {[%clk 0:03:00]}  Nc6 {[%clk 0:03:00]} 3. Bb5 {[%clk 0:03:01]}  a6 {[%clk 0:02:59]} 4. Ba4 {[%clk 0:03:01]}  d6 {[%clk 0:03:00]} 5. O-O {[%clk 0:03:01]}  Bd7 {[%clk 0:03:00]} 6. c3 {[%clk 0:03:01]}  g6 {[%clk 0:03:00]} 7. d4 {[%clk 0:03:00]}  Bg7 {[%clk 0:03:01]} 8. Re1 {[%clk 0:02:59]}  Nf6 {[%clk 0:03:01]} 9. h3 {[%clk 0:02:57]}  O-O {[%clk 0:03:01]} 10. Bc2 {[%clk 0:02:53]}  b5 {[%clk 0:03:00]} 11. Nbd2 {[%clk 0:02:52]}  Re8 {[%clk 0:02:59]} 12. Nf1 {[%clk 0:02:51]}  Na5 {[%clk 0:02:56]} 13. b3 {[%clk 0:02:43]}  c5 {[%clk 0:02:56]} 14. Bb2 {[%clk 0:02:42]}  Qc7 {[%clk 0:02:55]} 15. Rc1 {[%clk 0:02:41]}  Bh6 {[%clk 0:02:51]} 16. Rb1 {[%clk 0:02:37]}  Rac8 {[%clk 0:02:51]} 17. Bd3 {[%clk 0:02:37]}  c4 {[%clk 0:02:50]} 18. Bc2 {[%clk 0:02:36]}  exd4 {[%clk 0:02:38]} 19. Nxd4 {[%clk 0:02:25]}  Bg7 {[%clk 0:02:37]} 20. Ng3 {[%clk 0:02:24]}  Nc6 {[%clk 0:02:35]} 21. bxc4 {[%clk 0:02:06]}  bxc4 {[%clk 0:02:31]} 22. Nxc6 {[%clk 0:01:39]}  Bxc6 {[%clk 0:02:29]} 23. Ba3 {[%clk 0:01:34]}  d5 {[%clk 0:02:29]} 24. Ba4 {[%clk 0:00:57]}  Nxe4 {[%clk 0:02:22]} 25. Nxe4 {[%clk 0:00:57]}  dxe4 {[%clk 0:02:21]} 26. Re3 {[%clk 0:00:49]}  Rcd8 {[%clk 0:02:11]} 27. Qc2 {[%clk 0:00:47]}  Rd3 {[%clk 0:02:05]} 28. Bxc6 {[%clk 0:00:47]}  Qxc6 {[%clk 0:02:04]} 29. Bb4 {[%clk 0:00:34]}  f5 {[%clk 0:02:01]} 30. Re2 {[%clk 0:00:26]}  e3 {[%clk 0:01:59]} 31. fxe3 {[%clk 0:00:20]}  Bh6 {[%clk 0:01:55]} 32. Rbe1 {[%clk 0:00:20]}  Bxe3+ {[%clk 0:01:53]} 33. Kh1 {[%clk 0:00:19]}  f4 {[%clk 0:01:54]} 34. Kh2 {[%clk 0:00:11]}  Re5 {[%clk 0:01:51]} 35. Rf1 {[%clk 0:00:11]}  Qe4 {[%clk 0:01:40]} 36. Rf3 {[%clk 0:00:10]}  Bg1+ {[%clk 0:01:39]} 37. Kxg1 {[%clk 0:00:11]}  Qxe2 {[%clk 0:01:39]} 38. Qxe2 {[%clk 0:00:02]}  Rxe2 {[%clk 0:01:40]} 39. Rxf4 {[%clk 0:00:03]}  Rdd2 {[%clk 0:01:41]} 40. Rg4 {[%clk 0:00:02]}  Rxa2 {[%clk 0:01:40]} 41. Kh2 {[%clk 0:00:02]}  a5 {[%clk 0:01:39]} 42. Bd6 {[%clk 0:00:01]}  Rac2 {[%clk 0:01:38]} 43. h4 {[%clk 0:00:01]}  Rxc3 {[%clk 0:01:37]} 44. Rf4 {[%clk 0:00:01]}  Rcc2 {[%clk 0:01:35]} 45. Rg4 {[%clk 0:00:01]}  Kf7 {[%clk 0:01:34]} 46. Kh3 {[%clk 0:00:01]}  Ke6 {[%clk 0:01:34]} 47. Bc7 {[%clk 0:00:01]}  a4 {[%clk 0:01:33]} 0-1


[Site "https://www.chess.com"]

[Event "Titled Tuesday Blitz November 29 Early 2022"]
[White "Tarasova, Viktoriya"]
[Black "Roque Sola, Jose Luis"]
[WhiteFideId "4175840"]
[BlackFideId "5120390"]
[WhiteElo "2182"]
[BlackElo "2117"]
[Result "1-0"]
[Round "06"]
[TimeControl "180+1"]
[Date "2022.11.30"]
[WhiteClock "0:00:19"]
[BlackClock "0:00:17"]

1. d4 {[%clk 0:03:00]}  Nf6 {[%clk 0:02:57]} 2. c4 {[%clk 0:03:00]}  g6 {[%clk 0:02:56]} 3. Nc3 {[%clk 0:03:00]}  d5 {[%clk 0:02:54]} 4. cxd5 {[%clk 0:03:00]}  Nxd5 {[%clk 0:02:54]} 5. e4 {[%clk 0:03:00]}  Nxc3 {[%clk 0:02:53]} 6. bxc3 {[%clk 0:03:01]}  Bg7 {[%clk 0:02:50]} 7. Bc4 {[%clk 0:03:02]}  O-O {[%clk 0:02:44]} 8. Ne2 {[%clk 0:03:00]}  c5 {[%clk 0:02:41]} 9. Be3 {[%clk 0:03:00]}  Qa5 {[%clk 0:02:23]} 10. O-O {[%clk 0:02:59]}  cxd4 {[%clk 0:02:05]} 11. cxd4 {[%clk 0:02:58]}  Qh5 {[%clk 0:01:58]} 12. Rc1 {[%clk 0:02:51]}  Nc6 {[%clk 0:01:56]} 13. Qd2 {[%clk 0:02:30]}  Bd7 {[%clk 0:01:44]} 14. Nf4 {[%clk 0:02:29]}  Qa5 {[%clk 0:01:42]} 15. Qxa5 {[%clk 0:02:05]}  Nxa5 {[%clk 0:01:42]} 16. Bd3 {[%clk 0:02:02]}  Rac8 {[%clk 0:01:40]} 17. Nd5 {[%clk 0:02:02]}  Nc6 {[%clk 0:01:31]} 18. e5 {[%clk 0:02:02]}  e6 {[%clk 0:01:29]} 19. Nf4 {[%clk 0:01:50]}  Nb4 {[%clk 0:01:25]} 20. Bb1 {[%clk 0:01:49]}  Bb5 {[%clk 0:01:12]} 21. Rfd1 {[%clk 0:01:49]}  Bc4 {[%clk 0:01:09]} 22. a3 {[%clk 0:01:47]}  Nd5 {[%clk 0:01:09]} 23. Nxd5 {[%clk 0:01:33]}  Bxd5 {[%clk 0:01:10]} 24. Rxc8 {[%clk 0:01:32]}  Rxc8 {[%clk 0:01:09]} 25. Rc1 {[%clk 0:01:33]}  Rxc1+ {[%clk 0:01:07]} 26. Bxc1 {[%clk 0:01:33]}  Bf8 {[%clk 0:01:08]} 27. f3 {[%clk 0:01:30]}  Kg7 {[%clk 0:01:01]} 28. Kf2 {[%clk 0:01:30]}  b5 {[%clk 0:00:56]} 29. Bd3 {[%clk 0:01:28]}  Bc6 {[%clk 0:00:51]} 30. Be4 {[%clk 0:01:24]}  Bxe4 {[%clk 0:00:50]} 31. fxe4 {[%clk 0:01:25]}  a5 {[%clk 0:00:45]} 32. Ke3 {[%clk 0:01:22]}  b4 {[%clk 0:00:45]} 33. a4 {[%clk 0:01:10]}  f6 {[%clk 0:00:43]} 34. exf6+ {[%clk 0:01:06]}  Kxf6 {[%clk 0:00:44]} 35. Kd3 {[%clk 0:01:06]}  h5 {[%clk 0:00:40]} 36. Kc4 {[%clk 0:01:05]}  Be7 {[%clk 0:00:35]} 37. Kb5 {[%clk 0:01:04]}  Bd8 {[%clk 0:00:35]} 38. Kc6 {[%clk 0:01:00]}  g5 {[%clk 0:00:31]} 39. Bb2 {[%clk 0:00:48]}  Ke7 {[%clk 0:00:26]} 40. d5 {[%clk 0:00:47]}  exd5 {[%clk 0:00:26]} 41. exd5 {[%clk 0:00:48]}  g4 {[%clk 0:00:20]} 42. h3 {[%clk 0:00:46]}  gxh3 {[%clk 0:00:19]} 43. gxh3 {[%clk 0:00:46]}  h4 {[%clk 0:00:19]} 44. Bd4 {[%clk 0:00:30]}  Kf7 {[%clk 0:00:19]} 45. d6 {[%clk 0:00:23]}  Ke6 {[%clk 0:00:18]} 46. Bb2 {[%clk 0:00:21]}  Bg5 {[%clk 0:00:18]} 47. d7 {[%clk 0:00:19]}  Bd8 {[%clk 0:00:17]} 48. Bd4 {[%clk 0:00:18]}  Be7 {[%clk 0:00:16]} 49. Kc7 {[%clk 0:00:18]}  Kd5 {[%clk 0:00:16]} 50. Bh8 {[%clk 0:00:17]}  Ke6 {[%clk 0:00:15]} 51. d8=Q {[%clk 0:00:17]}  Bxd8+ {[%clk 0:00:15]} 52. Kxd8 {[%clk 0:00:18]}  Kd5 {[%clk 0:00:15]} 53. Kc7 {[%clk 0:00:18]}  Kc4 {[%clk 0:00:16]} 54. Kb6 {[%clk 0:00:18]}  b3 {[%clk 0:00:17]} 55. Kxa5 {[%clk 0:00:19]} 1-0


[Site "https://www.chess.com"]

[Event "Titled Tuesday Blitz November 29 Early 2022"]
[White "Terzi, Alexei"]
[Black "Wagner, Dennis"]
[WhiteFideId "13505076"]
[BlackFideId "24650684"]
[WhiteElo "2172"]
[BlackElo "2470"]
[Result "0-1"]
[Round "06"]
[TimeControl "180+1"]
[Date "2022.11.30"]
[WhiteClock "0:00:09"]
[BlackClock "0:00:20"]

1. d4 {[%clk 0:03:00]}  Nf6 {[%clk 0:03:00]} 2. Nf3 {[%clk 0:02:59]}  d5 {[%clk 0:03:00]} 3. Bf4 {[%clk 0:02:59]}  e6 {[%clk 0:02:58]} 4. e3 {[%clk 0:02:58]}  Bd6 {[%clk 0:02:59]} 5. Nbd2 {[%clk 0:02:58]}  O-O {[%clk 0:02:57]} 6. Bd3 {[%clk 0:02:57]}  c5 {[%clk 0:02:54]} 7. c3 {[%clk 0:02:54]}  Bxf4 {[%clk 0:02:48]} 8. exf4 {[%clk 0:02:54]}  Qc7 {[%clk 0:02:42]} 9. Ne5 {[%clk 0:02:30]}  b6 {[%clk 0:02:41]} 10. Ndf3 {[%clk 0:02:26]}  Ba6 {[%clk 0:02:39]} 11. O-O {[%clk 0:02:24]}  Bxd3 {[%clk 0:02:38]} 12. Qxd3 {[%clk 0:02:24]}  Nc6 {[%clk 0:02:38]} 13. Rfe1 {[%clk 0:02:20]}  Rfc8 {[%clk 0:02:36]} 14. g3 {[%clk 0:02:20]}  a5 {[%clk 0:02:28]} 15. h4 {[%clk 0:02:11]}  h6 {[%clk 0:02:24]} 16. Kg2 {[%clk 0:02:09]}  a4 {[%clk 0:02:23]} 17. a3 {[%clk 0:02:05]}  Ne4 {[%clk 0:02:02]} 18. h5 {[%clk 0:01:52]}  cxd4 {[%clk 0:01:59]} 19. Nxd4 {[%clk 0:01:46]}  Nxe5 {[%clk 0:01:48]} 20. fxe5 {[%clk 0:01:46]}  Qxe5 {[%clk 0:01:48]} 21. Qf3 {[%clk 0:01:26]}  Qf6 {[%clk 0:01:44]} 22. Re3 {[%clk 0:01:21]}  Qxf3+ {[%clk 0:01:42]} 23. Rxf3 {[%clk 0:01:21]}  Re8 {[%clk 0:01:18]} 24. Rd1 {[%clk 0:01:21]}  Nf6 {[%clk 0:01:13]} 25. Nc6 {[%clk 0:01:17]}  Rac8 {[%clk 0:01:09]} 26. Ne5 {[%clk 0:01:15]}  Rc7 {[%clk 0:01:03]} 27. Rh1 {[%clk 0:01:12]}  Ne4 {[%clk 0:00:54]} 28. Rd3 {[%clk 0:01:06]}  f6 {[%clk 0:00:51]} 29. Ng6 {[%clk 0:01:03]}  Nc5 {[%clk 0:00:51]} 30. Rd4 {[%clk 0:01:01]}  Kf7 {[%clk 0:00:51]} 31. Rhd1 {[%clk 0:00:57]}  b5 {[%clk 0:00:48]} 32. f4 {[%clk 0:00:56]}  Nb3 {[%clk 0:00:44]} 33. Rb4 {[%clk 0:00:51]}  Rc5 {[%clk 0:00:42]} 34. Kf2 {[%clk 0:00:50]}  e5 {[%clk 0:00:38]} 35. fxe5 {[%clk 0:00:46]}  fxe5 {[%clk 0:00:39]} 36. Ke2 {[%clk 0:00:42]}  Na5 {[%clk 0:00:39]} 37. Rf1+ {[%clk 0:00:41]}  Ke6 {[%clk 0:00:39]} 38. Rg4 {[%clk 0:00:35]}  Rc4 {[%clk 0:00:35]} 39. Rh4 {[%clk 0:00:30]}  Rxh4 {[%clk 0:00:34]} 40. Nxh4 {[%clk 0:00:31]}  Nc4 {[%clk 0:00:34]} 41. Nf5 {[%clk 0:00:27]}  Rg8 {[%clk 0:00:29]} 42. Ne3 {[%clk 0:00:24]}  g6 {[%clk 0:00:23]} 43. Ng4 {[%clk 0:00:14]}  gxh5 {[%clk 0:00:20]} 44. Nxh6 {[%clk 0:00:05]}  Rxg3 {[%clk 0:00:20]} 45. Nf5 {[%clk 0:00:04]}  Rg2+ {[%clk 0:00:21]} 46. Ke1 {[%clk 0:00:04]}  Rxb2 {[%clk 0:00:20]} 47. Ng7+ {[%clk 0:00:04]}  Ke7 {[%clk 0:00:19]} 48. Nxh5 {[%clk 0:00:05]}  Nxa3 {[%clk 0:00:18]} 49. Kd1 {[%clk 0:00:05]}  Rb1+ {[%clk 0:00:18]} 50. Ke2 {[%clk 0:00:05]}  Rxf1 {[%clk 0:00:19]} 51. Kxf1 {[%clk 0:00:06]}  Nc2 {[%clk 0:00:19]} 52. Ng3 {[%clk 0:00:07]}  a3 {[%clk 0:00:19]} 53. Ke2 {[%clk 0:00:08]}  a2 {[%clk 0:00:19]} 54. Kd2 {[%clk 0:00:09]}  a1=Q {[%clk 0:00:20]} 0-1


[Site "https://www.chess.com"]

[Event "Titled Tuesday Blitz November 29 Early 2022"]
[White "Tokhirjonova, Gulrukhbegim"]
[Black "Barash, Anton"]
[WhiteFideId "14203626"]
[BlackFideId "30935229"]
[WhiteElo "2236"]
[BlackElo "2324"]
[Result "0-1"]
[Round "06"]
[TimeControl "180+1"]
[Date "2022.11.30"]
[WhiteClock "0:00:24"]
[BlackClock "0:01:01"]

1. e4 {[%clk 0:03:00]}  e6 {[%clk 0:02:58]} 2. d4 {[%clk 0:02:45]}  d5 {[%clk 0:02:58]} 3. e5 {[%clk 0:02:42]}  c5 {[%clk 0:02:59]} 4. c3 {[%clk 0:02:41]}  Nc6 {[%clk 0:02:59]} 5. Nf3 {[%clk 0:02:38]}  Qb6 {[%clk 0:02:58]} 6. a3 {[%clk 0:02:31]}  Nh6 {[%clk 0:02:56]} 7. b4 {[%clk 0:02:26]}  cxd4 {[%clk 0:02:57]} 8. cxd4 {[%clk 0:02:27]}  Nf5 {[%clk 0:02:57]} 9. Bb2 {[%clk 0:02:08]}  Bd7 {[%clk 0:02:56]} 10. Be2 {[%clk 0:02:04]}  Rc8 {[%clk 0:02:46]} 11. O-O {[%clk 0:02:04]}  Na5 {[%clk 0:02:46]} 12. Nbd2 {[%clk 0:01:58]}  Nc4 {[%clk 0:02:44]} 13. Nxc4 {[%clk 0:01:57]}  dxc4 {[%clk 0:02:45]} 14. Rc1 {[%clk 0:01:54]}  Qa6 {[%clk 0:02:36]} 15. d5 {[%clk 0:01:51]}  exd5 {[%clk 0:02:26]} 16. Qxd5 {[%clk 0:01:52]}  Be6 {[%clk 0:02:27]} 17. Qe4 {[%clk 0:01:50]}  Be7 {[%clk 0:02:23]} 18. Nd2 {[%clk 0:01:38]}  b5 {[%clk 0:02:19]} 19. g4 {[%clk 0:01:36]}  Nh4 {[%clk 0:02:13]} 20. f4 {[%clk 0:01:34]}  Rd8 {[%clk 0:02:06]} 21. Qe3 {[%clk 0:01:33]}  Qb7 {[%clk 0:01:54]} 22. Nf3 {[%clk 0:01:28]}  Bd5 {[%clk 0:01:42]} 23. Nxh4 {[%clk 0:01:08]}  Bxh4 {[%clk 0:01:43]} 24. Bf3 {[%clk 0:01:07]}  O-O {[%clk 0:01:41]} 25. g5 {[%clk 0:01:05]}  Bxf3 {[%clk 0:01:31]} 26. Rxf3 {[%clk 0:01:06]}  Rd3 {[%clk 0:01:30]} 27. Qxd3 {[%clk 0:00:58]}  cxd3 {[%clk 0:01:31]} 28. Rxd3 {[%clk 0:00:58]}  Qe4 {[%clk 0:01:27]} 29. Rcd1 {[%clk 0:00:43]}  Qxf4 {[%clk 0:01:19]} 30. Bc1 {[%clk 0:00:43]}  Qxe5 {[%clk 0:01:11]} 31. Rd5 {[%clk 0:00:43]}  Qe2 {[%clk 0:01:07]} 32. Rf1 {[%clk 0:00:34]}  Qg4+ {[%clk 0:01:00]} 33. Kh1 {[%clk 0:00:24]}  Qe4+ {[%clk 0:01:01]} 0-1


[Site "https://www.chess.com"]

[Event "Titled Tuesday Blitz November 29 Early 2022"]
[White "Tsukerman, Julia"]
[Black "Dzhaparov, Medet"]
[WhiteFideId "2621649"]
[BlackFideId "13803689"]
[WhiteElo "1667"]
[BlackElo "1702"]
[Result "0-1"]
[Round "06"]
[TimeControl "180+1"]
[Date "2022.11.30"]
[WhiteClock "0:00:10"]
[BlackClock "0:00:28"]

1. e4 {[%clk 0:02:56]}  e5 {[%clk 0:03:00]} 2. Nf3 {[%clk 0:02:55]}  Nc6 {[%clk 0:02:59]} 3. Bb5 {[%clk 0:02:56]}  Nf6 {[%clk 0:02:51]} 4. d3 {[%clk 0:02:54]}  d6 {[%clk 0:02:49]} 5. c3 {[%clk 0:02:54]}  Bd7 {[%clk 0:02:49]} 6. O-O {[%clk 0:02:53]}  Be7 {[%clk 0:02:49]} 7. Re1 {[%clk 0:02:52]}  O-O {[%clk 0:02:48]} 8. h3 {[%clk 0:02:48]}  a6 {[%clk 0:02:48]} 9. Ba4 {[%clk 0:02:48]}  b5 {[%clk 0:02:48]} 10. Bb3 {[%clk 0:02:47]}  Na5 {[%clk 0:02:48]} 11. Bc2 {[%clk 0:02:48]}  c5 {[%clk 0:02:48]} 12. d4 {[%clk 0:02:47]}  cxd4 {[%clk 0:02:46]} 13. cxd4 {[%clk 0:02:47]}  Nc6 {[%clk 0:02:45]} 14. Nc3 {[%clk 0:02:45]}  Rc8 {[%clk 0:02:37]} 15. a3 {[%clk 0:02:37]}  Qc7 {[%clk 0:02:35]} 16. Bg5 {[%clk 0:02:30]}  h6 {[%clk 0:02:29]} 17. Bh4 {[%clk 0:02:27]}  Na5 {[%clk 0:02:16]} 18. Rc1 {[%clk 0:02:25]}  Nc4 {[%clk 0:02:13]} 19. Rb1 {[%clk 0:02:10]}  Nxb2 {[%clk 0:02:05]} 20. Rxb2 {[%clk 0:02:10]}  Qxc3 {[%clk 0:02:04]} 21. Qb1 {[%clk 0:02:09]}  exd4 {[%clk 0:02:01]} 22. Rd1 {[%clk 0:02:06]}  Qxa3 {[%clk 0:01:53]} 23. Rxd4 {[%clk 0:02:02]}  a5 {[%clk 0:01:40]} 24. e5 {[%clk 0:01:51]}  dxe5 {[%clk 0:01:34]} 25. Nxe5 {[%clk 0:01:48]}  Be6 {[%clk 0:01:24]} 26. Rxb5 {[%clk 0:01:32]}  Qc3 {[%clk 0:01:13]} 27. Bxf6 {[%clk 0:00:50]}  Bxf6 {[%clk 0:01:06]} 28. Bh7+ {[%clk 0:00:42]}  Kh8 {[%clk 0:01:04]} 29. Qd1 {[%clk 0:00:20]}  Kxh7 {[%clk 0:00:32]} 30. Rd3 {[%clk 0:00:17]}  Qc1 {[%clk 0:00:30]} 31. Nf3 {[%clk 0:00:14]}  Qxd1+ {[%clk 0:00:30]} 32. Rxd1 {[%clk 0:00:15]}  a4 {[%clk 0:00:31]} 33. Ne5 {[%clk 0:00:12]}  Bxe5 {[%clk 0:00:29]} 34. Rxe5 {[%clk 0:00:12]}  a3 {[%clk 0:00:30]} 35. Ra1 {[%clk 0:00:10]}  a2 {[%clk 0:00:29]} 36. Ra5 {[%clk 0:00:11]}  Rb8 {[%clk 0:00:28]} 37. Kf1 {[%clk 0:00:10]}  Rb1+ {[%clk 0:00:28]} 38. Ke2 {[%clk 0:00:10]}  Rxa1 {[%clk 0:00:28]} 0-1


[Site "https://www.chess.com"]

[Event "Titled Tuesday Blitz November 29 Early 2022"]
[White "Yeremyan, Alen"]
[Black "Fernandez Garcia, Gumersindo"]
[WhiteFideId "13308998"]
[BlackFideId "24516740"]
[WhiteElo "2159"]
[BlackElo "2140"]
[Result "1-0"]
[Round "06"]
[TimeControl "180+1"]
[Date "2022.11.30"]
[WhiteClock "0:02:13"]
[BlackClock "0:00:55"]

1. d4 {[%clk 0:02:58]}  Nf6 {[%clk 0:02:56]} 2. Nf3 {[%clk 0:02:57]}  g6 {[%clk 0:02:52]} 3. c4 {[%clk 0:02:57]}  Bg7 {[%clk 0:02:52]} 4. g3 {[%clk 0:02:58]}  d6 {[%clk 0:02:53]} 5. Bg2 {[%clk 0:02:59]}  O-O {[%clk 0:02:51]} 6. O-O {[%clk 0:03:00]}  Nbd7 {[%clk 0:02:52]} 7. Nc3 {[%clk 0:03:00]}  e5 {[%clk 0:02:52]} 8. e4 {[%clk 0:02:58]}  exd4 {[%clk 0:02:53]} 9. Nxd4 {[%clk 0:02:58]}  Re8 {[%clk 0:02:53]} 10. Re1 {[%clk 0:02:56]}  a6 {[%clk 0:02:53]} 11. h3 {[%clk 0:02:54]}  Rb8 {[%clk 0:02:54]} 12. Qc2 {[%clk 0:02:53]}  Ne5 {[%clk 0:02:52]} 13. b3 {[%clk 0:02:52]}  c5 {[%clk 0:02:52]} 14. Nde2 {[%clk 0:02:52]}  b5 {[%clk 0:02:53]} 15. cxb5 {[%clk 0:02:52]}  axb5 {[%clk 0:02:53]} 16. Rd1 {[%clk 0:02:53]}  Be6 {[%clk 0:02:46]} 17. Bb2 {[%clk 0:02:51]}  Qc7 {[%clk 0:02:39]} 18. Nf4 {[%clk 0:02:50]}  b4 {[%clk 0:02:28]} 19. Ncd5 {[%clk 0:02:49]}  Nxd5 {[%clk 0:02:26]} 20. Nxd5 {[%clk 0:02:50]}  Bxd5 {[%clk 0:02:22]} 21. Rxd5 {[%clk 0:02:50]}  Re6 {[%clk 0:02:21]} 22. Rad1 {[%clk 0:02:48]}  Ra8 {[%clk 0:02:20]} 23. Ba1 {[%clk 0:02:46]}  Qb6 {[%clk 0:02:14]} 24. Kh2 {[%clk 0:02:43]}  Rae8 {[%clk 0:02:10]} 25. f4 {[%clk 0:02:43]}  Nd7 {[%clk 0:02:08]} 26. Bxg7 {[%clk 0:02:44]}  Kxg7 {[%clk 0:02:09]} 27. e5 {[%clk 0:02:44]}  dxe5 {[%clk 0:01:50]} 28. Rxd7 {[%clk 0:02:44]}  exf4 {[%clk 0:01:50]} 29. Qb2+ {[%clk 0:02:40]}  Rf6 {[%clk 0:01:47]} 30. R1d6 {[%clk 0:02:38]}  fxg3+ {[%clk 0:01:45]} 31. Kxg3 {[%clk 0:02:36]}  Re3+ {[%clk 0:01:21]} 32. Kh2 {[%clk 0:02:31]}  Re6 {[%clk 0:01:16]} 33. Rxb6 {[%clk 0:02:28]}  Rxb6 {[%clk 0:01:17]} 34. Bd5 {[%clk 0:02:27]}  Kf8 {[%clk 0:01:14]} 35. Qe5 {[%clk 0:02:25]}  Ra6 {[%clk 0:01:10]} 36. Bxf7 {[%clk 0:02:18]}  Rxa2+ {[%clk 0:01:08]} 37. Kg3 {[%clk 0:02:19]}  Raf2 {[%clk 0:00:59]} 38. Qe8+ {[%clk 0:02:12]}  Kg7 {[%clk 0:00:57]} 39. Bxg6+ {[%clk 0:02:12]}  Kh6 {[%clk 0:00:54]} 40. Rxh7+ {[%clk 0:02:12]}  Kg5 {[%clk 0:00:55]} 41. Rh5# {[%clk 0:02:13]} 1-0


[Site "https://www.chess.com"]

[Event "Titled Tuesday Blitz November 29 Early 2022"]
[White "Zaksaite, Salomeja"]
[Black "Gonzalez, Francisco Silva"]
[WhiteFideId "12801496"]
[BlackFideId "1512285"]
[WhiteElo "2079"]
[BlackElo "2159"]
[Result "0-1"]
[Round "06"]
[TimeControl "180+1"]
[Date "2022.11.30"]
[WhiteClock "0:00:01"]
[BlackClock "0:00:58"]

1. e4 {[%clk 0:02:57]}  e5 {[%clk 0:02:59]} 2. Nf3 {[%clk 0:02:56]}  Nc6 {[%clk 0:02:58]} 3. Bc4 {[%clk 0:02:56]}  Bc5 {[%clk 0:02:57]} 4. d3 {[%clk 0:02:56]}  Nf6 {[%clk 0:02:57]} 5. Nbd2 {[%clk 0:02:56]}  d6 {[%clk 0:02:56]} 6. h3 {[%clk 0:02:55]}  a6 {[%clk 0:02:55]} 7. c3 {[%clk 0:02:55]}  Ba7 {[%clk 0:02:55]} 8. Bb3 {[%clk 0:02:55]}  Ne7 {[%clk 0:02:55]} 9. Nf1 {[%clk 0:02:54]}  Ng6 {[%clk 0:02:55]} 10. g4 {[%clk 0:02:55]}  Nd7 {[%clk 0:02:54]} 11. Ng3 {[%clk 0:02:55]}  Nc5 {[%clk 0:02:54]} 12. Bc2 {[%clk 0:02:53]}  a5 {[%clk 0:02:49]} 13. Nf5 {[%clk 0:02:48]}  Kf8 {[%clk 0:02:47]} 14. Bg5 {[%clk 0:02:13]}  Qe8 {[%clk 0:02:46]} 15. Qd2 {[%clk 0:02:12]}  Ne6 {[%clk 0:02:38]} 16. Be3 {[%clk 0:01:56]}  Ngf4 {[%clk 0:02:38]} 17. O-O-O {[%clk 0:01:49]}  h5 {[%clk 0:02:35]} 18. g5 {[%clk 0:01:44]}  g6 {[%clk 0:02:29]} 19. d4 {[%clk 0:01:43]}  gxf5 {[%clk 0:02:25]} 20. exf5 {[%clk 0:01:42]}  Ng7 {[%clk 0:01:56]} 21. dxe5 {[%clk 0:01:20]}  dxe5 {[%clk 0:01:50]} 22. f6 {[%clk 0:01:12]}  Nge6 {[%clk 0:01:37]} 23. Nxe5 {[%clk 0:00:55]}  Ng6 {[%clk 0:01:25]} 24. Bxg6 {[%clk 0:00:38]}  fxg6 {[%clk 0:01:25]} 25. Bxa7 {[%clk 0:00:37]}  Rxa7 {[%clk 0:01:24]} 26. f7 {[%clk 0:00:38]}  Qxf7 {[%clk 0:01:16]} 27. Nxf7 {[%clk 0:00:37]}  Kxf7 {[%clk 0:01:16]} 28. Rhe1 {[%clk 0:00:30]}  Ra6 {[%clk 0:01:12]} 29. f4 {[%clk 0:00:27]}  Rd8 {[%clk 0:01:07]} 30. Qe3 {[%clk 0:00:08]}  Rxd1+ {[%clk 0:01:03]} 31. Rxd1 {[%clk 0:00:08]}  Rd6 {[%clk 0:01:04]} 32. Rxd6 {[%clk 0:00:06]}  cxd6 {[%clk 0:01:03]} 33. f5 {[%clk 0:00:02]}  gxf5 {[%clk 0:01:02]} 34. Qb6 {[%clk 0:00:01]}  Ke7 {[%clk 0:00:58]} 0-1


[Site "https://www.chess.com"]

[Event "Titled Tuesday Blitz November 29 Early 2022"]
[White "Zhu, Jiner"]
[Black "Forgacs, Attila Jr."]
[WhiteFideId "8608059"]
[BlackFideId "773654"]
[WhiteElo "2384"]
[BlackElo "2168"]
[Result "1-0"]
[Round "06"]
[TimeControl "180+1"]
[Date "2022.11.30"]
[WhiteClock "0:00:25"]
[BlackClock "0:00:04"]

1. c4 {[%clk 0:03:00]}  e5 {[%clk 0:02:59]} 2. Nc3 {[%clk 0:03:00]}  d6 {[%clk 0:03:00]} 3. Nf3 {[%clk 0:02:59]}  g6 {[%clk 0:03:00]} 4. d4 {[%clk 0:02:58]}  Nd7 {[%clk 0:02:59]} 5. e4 {[%clk 0:02:58]}  Ngf6 {[%clk 0:02:59]} 6. Be2 {[%clk 0:02:56]}  Bg7 {[%clk 0:02:59]} 7. O-O {[%clk 0:02:56]}  O-O {[%clk 0:03:00]} 8. Be3 {[%clk 0:02:45]}  c6 {[%clk 0:03:00]} 9. b4 {[%clk 0:02:42]}  Ng4 {[%clk 0:02:50]} 10. Bg5 {[%clk 0:02:41]}  f6 {[%clk 0:02:50]} 11. Bh4 {[%clk 0:02:41]}  g5 {[%clk 0:02:47]} 12. Bg3 {[%clk 0:02:41]}  Nh6 {[%clk 0:02:47]} 13. c5 {[%clk 0:02:29]}  exd4 {[%clk 0:02:46]} 14. Nxd4 {[%clk 0:02:21]}  Ne5 {[%clk 0:02:28]} 15. Qb3+ {[%clk 0:02:04]}  Kh8 {[%clk 0:02:24]} 16. Rad1 {[%clk 0:02:02]}  dxc5 {[%clk 0:02:15]} 17. Nxc6 {[%clk 0:01:51]}  Qe8 {[%clk 0:02:03]} 18. Nxe5 {[%clk 0:01:47]}  fxe5 {[%clk 0:02:04]} 19. bxc5 {[%clk 0:01:46]}  Be6 {[%clk 0:02:02]} 20. Qxb7 {[%clk 0:01:45]}  Rf7 {[%clk 0:01:51]} 21. Qa6 {[%clk 0:01:43]}  Rc7 {[%clk 0:01:47]} 22. Bb5 {[%clk 0:01:36]}  Qf8 {[%clk 0:01:35]} 23. Qxe6 {[%clk 0:01:23]}  Rxc5 {[%clk 0:01:30]} 24. Qb3 {[%clk 0:01:08]}  Rac8 {[%clk 0:01:22]} 25. Rd3 {[%clk 0:01:06]}  Qe7 {[%clk 0:00:42]} 26. Nd5 {[%clk 0:00:54]}  Qb7 {[%clk 0:00:37]} 27. Bc4 {[%clk 0:00:44]}  Qf7 {[%clk 0:00:24]} 28. Ne3 {[%clk 0:00:38]}  Rxc4 {[%clk 0:00:19]} 29. Nxc4 {[%clk 0:00:37]}  Qxc4 {[%clk 0:00:19]} 30. Rd8+ {[%clk 0:00:37]}  Ng8 {[%clk 0:00:20]} 31. Qxc4 {[%clk 0:00:36]}  Rxc4 {[%clk 0:00:19]} 32. Rb1 {[%clk 0:00:36]}  Rxe4 {[%clk 0:00:16]} 33. f3 {[%clk 0:00:32]}  Rd4 {[%clk 0:00:13]} 34. Re8 {[%clk 0:00:31]}  e4 {[%clk 0:00:07]} 35. Rbb8 {[%clk 0:00:28]}  Rd1+ {[%clk 0:00:06]} 36. Kf2 {[%clk 0:00:27]}  e3+ {[%clk 0:00:04]} 37. Ke2 {[%clk 0:00:25]} 1-0


[Site "https://www.chess.com"]